fUSD/lending_fUSD_20250823
["ID","MTS","AMOUNT","RATE_DAILY","PERIOD"]
[380947221,1755912232339,-400.0,0.00013698,2]
[380947222,1755912232361,-400.0,0.00013698,2]
[380947223,1755912232382,-661.09,0.00013698,2]
[380947224,1755912232403,-472.76,0.00013698,2]
[380947225,1755912232426,-400.0,0.00013698,2]
[380947226,1755912232447,-400.0,0.00013698,2]
[380947227,1755912232468,-714.86,0.00013698,2]
[380947228,1755912232489,-400.0,0.00013698,2]
[380947229,1755912232511,-400.0,0.00013698,2]
[380947230,1755912232533,-400.0,0.00013698,2]
[380947231,1755912232554,-400.0,0.00013698,2]
[380947232,1755912232576,-400.0,0.00013698,2]
[380947233,1755912232598,-400.0,0.00013698,2]
[380947234,1755912232635,-400.0,0.00013698,2]
[380947235,1755912232657,-445.4,0.00013698,2]
[380947236,1755912232678,-814.35,0.00013698,2]
[380947237,1755912232700,-400.0,0.00013698,2]
[380947238,1755912232735,-703.72,0.00013698,2]
[380947239,1755912232760,-400.0,0.00013698,2]
[380947240,1755912232783,-400.0,0.00013698,2]
[380947241,1755912232805,-520.4,0.00013698,2]
[380947242,1755912232827,-400.0,0.00013698,2]
[380947243,1755912232850,-400.0,0.00013698,2]
[380947244,1755912232872,-400.0,0.00013698,2]
[380947245,1755912232895,-419.31,0.00013698,2]
[380947246,1755912232917,-400.0,0.00013698,2]
[380947247,1755912232938,-504.81,0.00013698,2]
[380947248,1755912232960,-644.61,0.00013698,2]
[380947249,1755912232983,-400.0,0.00013698,2]
[380947250,1755912233005,-400.0,0.00013698,2]
[380947251,1755912233028,-515.8,0.00013698,2]
[380947252,1755912233051,-400.0,0.00013698,2]
[380947253,1755912233074,-400.0,0.00013698,2]
[380947254,1755912233098,-400.0,0.00013698,2]
[380947255,1755912233121,-400.0,0.00013698,2]
[380947256,1755912233144,-400.0,0.00013698,2]
[380947257,1755912233166,-400.0,0.00013698,2]
[380947258,1755912233194,-400.0,0.00013698,2]
[380947259,1755912233221,-416.84,0.00013698,2]
[380947260,1755912233245,-400.0,0.00013698,2]
[380947261,1755912233268,-400.0,0.00013698,2]
[380947262,1755912233293,-400.0,0.00013698,2]
[380947263,1755912233317,-400.0,0.00013698,2]
[380947264,1755912233340,-400.0,0.00013698,2]
[380947265,1755912233364,-520.23,0.00013698,2]
[380947266,1755912233387,-463.25,0.00013698,2]
[380947267,1755912233411,-400.0,0.00013698,2]
[380947268,1755912233435,-400.0,0.00013698,2]
[380947269,1755912233462,-559.14,0.00013698,2]
[380947270,1755912233494,-400.0,0.00013698,2]
[380947271,1755912233520,-401.32,0.00013698,2]
[380947272,1755912233542,-400.0,0.00013698,2]
[380947273,1755912233566,-552.81,0.00013698,2]
[380947274,1755912233591,-400.0,0.00013698,2]
[380947275,1755912233614,-400.0,0.00013698,2]
[380947276,1755912233638,-455.35,0.00013698,2]
[380947277,1755912233662,-400.0,0.00013698,2]
[380947278,1755912233685,-565.22,0.00013698,2]
[380947279,1755912233710,-773.99,0.00013698,2]
[380947280,1755912233733,-400.0,0.00013698,2]
[380947281,1755912233756,-400.0,0.00013698,2]
[380947282,1755912233780,-400.0,0.00013698,2]
[380947283,1755912233804,-469.57,0.00013698,2]
[380947284,1755912233828,-500.9526299,0.00013698,2]
[380947285,1755912233851,-400.0,0.00013698,2]
[380947286,1755912233875,-500.0,0.00013698,2]
[380947287,1755912233900,-500.0,0.00013698,2]
[380947288,1755912233928,-500.0,0.00013698,2]
[380947289,1755912233952,-400.0,0.00013698,2]
[380947290,1755912233975,-457.37,0.00013698,2]
[380947291,1755912233998,-400.0,0.00013698,2]
[380947292,1755912234022,-400.0,0.00013698,2]
[380947293,1755912234045,-400.0,0.00013698,2]
[380947294,1755912234068,-448.19,0.00013698,2]
[380947295,1755912234091,-400.0,0.00013698,2]
[380947296,1755912234114,-400.0,0.00013698,2]
[380947297,1755912234137,-400.0,0.00013698,2]
[380947298,1755912234161,-400.0,0.00013698,2]
[380947299,1755912234186,-400.0,0.00013698,2]
[380947300,1755912234210,-446.44,0.00013698,2]
[380947301,1755912234238,-400.0,0.00013698,2]
[380947302,1755912234263,-733.57,0.00013698,2]
[380947303,1755912234288,-400.0,0.00013698,2]
[380947304,1755912234312,-400.0,0.00013698,2]
[380947305,1755912234334,-400.0,0.00013698,2]
[380947306,1755912234357,-400.0,0.00013698,2]
[380947307,1755912234380,-499.39209247,0.00013698,2]
[380947308,1755912234404,-454.18,0.00013698,2]
[380947309,1755912234428,-400.0,0.00013698,2]
[380947310,1755912234451,-900.81,0.00013698,2]
[380947311,1755912234475,-408.41,0.00013698,2]
[380947312,1755912234498,-400.0,0.00013698,2]
[380947313,1755912234522,-400.0,0.00013698,2]
[380947314,1755912234545,-400.0,0.00013698,2]
[380947315,1755912234567,-400.0,0.00013698,2]
[380947316,1755912234591,-400.0,0.00013698,2]
[380947317,1755912234614,-400.0,0.00013698,2]
[380947318,1755912234638,-400.0,0.00013698,2]
[380947319,1755912234661,-400.0,0.00013698,2]
[380947320,1755912234683,-485.95,0.00013698,2]
[380947321,1755912234706,-400.0,0.00013698,2]
[380947322,1755912234729,-429.23,0.00013698,2]
[380947323,1755912234751,-400.0,0.00013698,2]
[380947324,1755912234774,-400.0,0.00013698,2]
[380947325,1755912234797,-400.0,0.00013698,2]
[380947326,1755912234819,-400.0,0.00013698,2]
[380947327,1755912234841,-400.0,0.00013698,2]
[380947328,1755912234864,-400.0,0.00013698,2]
[380947329,1755912234886,-400.0,0.00013698,2]
[380947330,1755912234909,-400.0,0.00013698,2]
[380947331,1755912234931,-400.0,0.00013698,2]
[380947332,1755912234953,-733.21,0.00013698,2]
[380947333,1755912234975,-400.0,0.00013698,2]
[380947334,1755912234998,-400.0,0.00013698,2]
[380947335,1755912235021,-943.59,0.00013698,2]
[380947336,1755912235044,-400.0,0.00013698,2]
[380947337,1755912235066,-582.37,0.00013698,2]
[380947338,1755912235088,-400.0,0.00013698,2]
[380947339,1755912235111,-400.0,0.00013698,2]
[380947340,1755912235134,-400.0,0.00013698,2]
[380947341,1755912235157,-400.0,0.00013698,2]
[380947342,1755912235180,-489.3,0.00013698,2]
[380947343,1755912235203,-400.0,0.00013698,2]
[380947344,1755912235228,-400.0,0.00013698,2]
[380947345,1755912235250,-400.0,0.00013698,2]
[380947346,1755912235274,-400.0,0.00013698,2]
[380947347,1755912235296,-400.0,0.00013698,2]
[380947348,1755912235319,-400.0,0.00013698,2]
[380947349,1755912235342,-400.0,0.00013698,2]
[380947350,1755912235366,-400.0,0.00013698,2]
[380947351,1755912235388,-428.66,0.00013698,2]
[380947352,1755912235413,-400.0,0.00013698,2]
[380947353,1755912235435,-400.0,0.00013698,2]
[380947354,1755912235457,-400.0,0.00013698,2]
[380947355,1755912235480,-631.71,0.00013698,2]
[380947356,1755912235503,-400.0,0.00013698,2]
[380947357,1755912235526,-759.88,0.00013698,2]
[380947358,1755912235548,-400.0,0.00013698,2]
[380947359,1755912235570,-591.39,0.00013698,2]
[380947360,1755912235593,-557.23,0.00013698,2]
[380947361,1755912235615,-400.0,0.00013698,2]
[380947362,1755912235637,-400.0,0.00013698,2]
[380947363,1755912235659,-413.97,0.00013698,2]
[380947364,1755912235682,-761.69,0.00013698,2]
[380947365,1755912235704,-649.74,0.00013698,2]
[380947366,1755912235727,-511.39,0.00013698,2]
[380947367,1755912235750,-446.38,0.00013698,2]
[380947368,1755912235773,-400.0,0.00013698,2]
[380947369,1755912235796,-400.0,0.00013698,2]
[380947370,1755912235818,-524.36145943,0.00013698,2]
[380947371,1755912235842,-506.47,0.00013698,2]
[380947372,1755912235866,-487.71,0.00013698,2]
[380947373,1755912235889,-400.0,0.00013698,2]
[380947374,1755912235911,-715.02,0.00013698,2]
[380947375,1755912235933,-400.0,0.00013698,2]
[380947376,1755912235955,-573.36,0.00013698,2]
[380947377,1755912235977,-537.25,0.00013698,2]
[380947378,1755912236000,-400.0,0.00013698,2]
[380947379,1755912236023,-400.0,0.00013698,2]
[380947380,1755912236046,-400.0,0.00013698,2]
[380947381,1755912236069,-400.0,0.00013698,2]
[380947382,1755912236093,-400.0,0.00013698,2]
[380947383,1755912236117,-471.75,0.00013698,2]
[380947384,1755912236145,-469.21,0.00013698,2]
[380947385,1755912236170,-400.0,0.00013698,2]
[380947386,1755912236193,-512.45,0.00013698,2]
[380947387,1755912236219,-400.0,0.00013698,2]
[380947388,1755912236242,-527.41,0.00013698,2]
[380947389,1755912236267,-709.91,0.00013698,2]
[380947390,1755912236291,-400.0,0.00013698,2]
[380947391,1755912236627,-675.33,0.00013698,2]
[380947392,1755912236650,-521.1,0.00013698,2]
[380947393,1755912236674,-400.0,0.00013698,2]
[380947394,1755912236697,-601.7,0.00013698,2]
[380947395,1755912236718,-400.0,0.00013698,2]
[380947396,1755912236740,-460.0,0.00013698,2]
[380947397,1755912236761,-400.0,0.00013698,2]
[380947398,1755912236782,-400.0,0.00013698,2]
[380947399,1755912236804,-400.0,0.00013698,2]
[380947400,1755912236826,-400.0,0.00013698,2]
[380947401,1755912236848,-400.0,0.00013698,2]
[380947402,1755912236870,-446.92,0.00013698,2]
[380947403,1755912236895,-400.0,0.00013698,2]
[380947404,1755912236916,-449.44,0.00013698,2]
[380947405,1755912236938,-626.33,0.00013698,2]
[380947406,1755912236959,-675.1,0.00013698,2]
[380947407,1755912236981,-400.0,0.00013698,2]
[380947408,1755912237004,-400.0,0.00013698,2]
[380947409,1755912237029,-400.0,0.00013698,2]
[380947410,1755912237051,-400.0,0.00013698,2]
[380947411,1755912237073,-462.17,0.00013698,2]
[380947412,1755912237095,-400.0,0.00013698,2]
[380947413,1755912237117,-400.0,0.00013698,2]
[380947414,1755912237139,-596.01,0.00013698,2]
[380947415,1755912237162,-400.0,0.00013698,2]
[380947416,1755912237184,-400.0,0.00013698,2]
[380947417,1755912237206,-400.0,0.00013698,2]
[380947418,1755912237233,-400.0,0.00013698,2]
[380947419,1755912237256,-400.0,0.00013698,2]
[380947420,1755912237278,-400.0,0.00013698,2]
[380947421,1755912237300,-400.0,0.00013698,2]
[380947422,1755912237322,-530.6,0.00013698,2]
[380947423,1755912237343,-400.0,0.00013698,2]
[380947424,1755912237365,-400.0,0.00013698,2]
[380947425,1755912237386,-609.3,0.00013698,2]
[380947426,1755912237408,-400.0,0.00013698,2]
[380947427,1755912237430,-654.03,0.00013698,2]
[380947428,1755912237451,-400.0,0.00013698,2]
[380947429,1755912237473,-400.0,0.00013698,2]
[380947430,1755912237494,-400.0,0.00013698,2]
[380947431,1755912237516,-400.0,0.00013698,2]
[380947432,1755912237538,-400.0,0.00013698,2]
[380947433,1755912237559,-442.11,0.00013698,2]
[380947434,1755912237581,-637.99,0.00013698,2]
[380947435,1755912237603,-400.0,0.00013698,2]
[380947436,1755912237625,-400.0,0.00013698,2]
[380947437,1755912237646,-661.96,0.00013698,2]
[380947438,1755912237667,-400.0,0.00013698,2]
[380947439,1755912237689,-400.0,0.00013698,2]
[380947440,1755912237710,-568.98,0.00013698,2]
[380947441,1755912237732,-400.0,0.00013698,2]
[380947442,1755912237753,-400.0,0.00013698,2]
[380947443,1755912237776,-400.0,0.00013698,2]
[380947444,1755912237797,-400.0,0.00013698,2]
[380947445,1755912237819,-420.46,0.00013698,2]
[380947446,1755912237840,-979.65,0.00013698,2]
[380947447,1755912237861,-483.06,0.00013698,2]
[380947448,1755912237883,-400.0,0.00013698,2]
[380947449,1755912237903,-400.0,0.00013698,2]
[380947450,1755912237924,-400.0,0.00013698,2]
[380947451,1755912237945,-400.0,0.00013698,2]
[380947452,1755912237966,-400.0,0.00013698,2]
[380947453,1755912237987,-400.0,0.00013698,2]
[380947454,1755912238009,-400.0,0.00013698,2]
[380947455,1755912238031,-612.26,0.00013698,2]
[380947456,1755912238052,-1026.66,0.00013698,2]
[380947457,1755912238074,-400.0,0.00013698,2]
[380947458,1755912238095,-400.0,0.00013698,2]
[380947459,1755912238116,-684.36,0.00013698,2]
[380947460,1755912238139,-400.0,0.00013698,2]
[380947461,1755912238161,-400.0,0.00013698,2]
[380947462,1755912238182,-400.0,0.00013698,2]
[380947463,1755912238204,-687.22,0.00013698,2]
[380947464,1755912238230,-709.86,0.00013698,2]
[380947465,1755912238252,-400.0,0.00013698,2]
[380947466,1755912238277,-400.0,0.00013698,2]
[380947467,1755912238298,-400.0,0.00013698,2]
[380947468,1755912238320,-437.4,0.00013698,2]
[380947469,1755912238341,-812.84,0.00013698,2]
[380947470,1755912238363,-400.0,0.00013698,2]
[380947471,1755912238385,-684.19,0.00013698,2]
[380947472,1755912238406,-586.38,0.00013698,2]
[380947473,1755912238428,-424.85,0.00013698,2]
[380947474,1755912238449,-442.27,0.00013698,2]
[380947475,1755912238470,-585.27,0.00013698,2]
[380947476,1755912238491,-400.0,0.00013698,2]
[380947477,1755912238513,-400.0,0.00013698,2]
[380947478,1755912238534,-562.61,0.00013698,2]
[380947479,1755912238556,-400.0,0.00013698,2]
[380947480,1755912238577,-812.1,0.00013698,2]
[380947481,1755912238599,-475.27,0.00013698,2]
[380947482,1755912238621,-400.0,0.00013698,2]
[380947483,1755912238647,-400.0,0.00013698,2]
[380947484,1755912238669,-400.0,0.00013698,2]
[380947485,1755912238691,-400.0,0.00013698,2]
[380947486,1755912238712,-400.0,0.00013698,2]
[380947487,1755912238734,-400.0,0.00013698,2]
[380947488,1755912238756,-400.0,0.00013698,2]
[380947489,1755912238779,-400.0,0.00013698,2]
[380947490,1755912238800,-500.0,0.00013698,2]
[380947491,1755912238821,-400.0,0.00013698,2]
[380947492,1755912238843,-627.37,0.00013698,2]
[380947493,1755912238866,-685.19,0.00013698,2]
[380947494,1755912238889,-400.0,0.00013698,2]
[380947495,1755912238910,-400.0,0.00013698,2]
[380947496,1755912238933,-818.64,0.00013698,2]
[380947497,1755912238955,-626.34,0.00013698,2]
[380947498,1755912238978,-400.0,0.00013698,2]
[380947499,1755912238999,-794.08,0.00013698,2]
[380947500,1755912239021,-845.65,0.00013698,2]
[380947501,1755912239043,-400.0,0.00013698,2]
[380947502,1755912239064,-441.24,0.00013698,2]
[380947503,1755912239086,-529.98,0.00013698,2]
[380947504,1755912239111,-400.0,0.00013698,2]
[380947505,1755912239141,-400.0,0.00013698,2]
[380947506,1755912239163,-524.99,0.00013698,2]
[380947507,1755912239186,-670.58,0.00013698,2]
[380947508,1755912239207,-400.0,0.00013698,2]
[380947509,1755912239233,-588.69,0.00013698,2]
[380947510,1755912239255,-400.0,0.00013698,2]
[380947511,1755912239278,-530.89,0.00013698,2]
[380947512,1755912239300,-400.0,0.00013698,2]
[380947513,1755912239323,-601.18,0.00013698,2]
[380947514,1755912239344,-475.73,0.00013698,2]
[380947515,1755912239366,-625.85,0.00013698,2]
[380947516,1755912239387,-570.39,0.00013698,2]
[380947517,1755912239409,-400.0,0.00013698,2]
[380947518,1755912239430,-400.0,0.00013698,2]
[380947519,1755912239452,-477.52,0.00013698,2]
[380947520,1755912239474,-400.0,0.00013698,2]
[380947521,1755912239495,-400.0,0.00013698,2]
[380947522,1755912239519,-400.0,0.00013698,2]
[380947523,1755912239541,-421.77,0.00013698,2]
[380947524,1755912239562,-400.0,0.00013698,2]
[380947525,1755912239583,-400.0,0.00013698,2]
[380947526,1755912239605,-513.27,0.00013698,2]
[380947527,1755912239628,-400.0,0.00013698,2]
[380947528,1755912239650,-400.0,0.00013698,2]
[380947529,1755912239672,-757.42,0.00013698,2]
[380947530,1755912239693,-525.03,0.00013698,2]
[380947531,1755912239716,-400.0,0.00013698,2]
[380947532,1755912239737,-400.0,0.00013698,2]
[380947533,1755912239759,-400.0,0.00013698,2]
[380947534,1755912239782,-479.61,0.00013698,2]
[380947535,1755912239804,-400.0,0.00013698,2]
[380947536,1755912239826,-634.59,0.00013698,2]
[380947537,1755912239850,-787.12,0.00013698,2]
[380947538,1755912239871,-400.0,0.00013698,2]
[380947539,1755912239893,-400.0,0.00013698,2]
[380947540,1755912239921,-400.0,0.00013698,2]
[380947541,1755912239947,-706.31,0.00013698,2]
[380947542,1755912239970,-400.0,0.00013698,2]
[380947543,1755912239993,-400.0,0.00013698,2]
[380947544,1755912240019,-452.17,0.00013698,2]
[380947545,1755912240042,-400.0,0.00013698,2]
[380947546,1755912240065,-491.09,0.00013698,2]
[380947547,1755912240088,-464.48,0.00013698,2]
[380947548,1755912240111,-464.47,0.00013698,2]
[380947549,1755912240133,-400.0,0.00013698,2]
[380947550,1755912240155,-400.0,0.00013698,2]
[380947551,1755912240177,-400.0,0.00013698,2]
[380947552,1755912240199,-412.22,0.00013698,2]
[380947553,1755912240231,-400.0,0.00013698,2]
[380947554,1755912240254,-400.0,0.00013698,2]
[380947555,1755912240279,-400.0,0.00013698,2]
[380947556,1755912240303,-568.26,0.00013698,2]
[380947557,1755912240324,-400.0,0.00013698,2]
[380947558,1755912240346,-400.0,0.00013698,2]
[380947559,1755912240368,-677.61,0.00013698,2]
[380947560,1755912240389,-400.0,0.00013698,2]
[380947561,1755912240411,-400.0,0.00013698,2]
[380947562,1755912240433,-649.77,0.00013698,2]
[380947563,1755912240455,-400.0,0.00013698,2]
[380947564,1755912240478,-400.0,0.00013698,2]
[380947565,1755912240506,-400.0,0.00013698,2]
[380947566,1755912240536,-400.0,0.00013698,2]
[380947567,1755912240559,-415.36,0.00013698,2]
[380947568,1755912240585,-400.0,0.00013698,2]
[380947569,1755912240608,-400.0,0.00013698,2]
[380947570,1755912240630,-778.67,0.00013698,2]
[380947571,1755912240920,-489.36,0.00013698,2]
[380947572,1755912240944,-400.0,0.00013698,2]
[380947573,1755912240966,-646.5,0.00013698,2]
[380947574,1755912240987,-530.98,0.00013698,2]
[380947575,1755912241010,-574.22,0.00013698,2]
[380947576,1755912241034,-459.8,0.00013698,2]
[380947577,1755912241058,-962.29,0.00013698,2]
[380947578,1755912241080,-409.17,0.00013698,2]
[380947579,1755912241102,-400.0,0.00013698,2]
[380947580,1755912241124,-400.0,0.00013698,2]
[380947581,1755912241148,-583.96,0.00013698,2]
[380947582,1755912241173,-1389.25,0.00013698,2]
[380947583,1755912241196,-400.0,0.00013698,2]
[380947584,1755912241221,-400.0,0.00013698,2]
[380947585,1755912241243,-400.0,0.00013698,2]
[380947586,1755912241265,-400.0,0.00013698,2]
[380947587,1755912241288,-512.43,0.00013698,2]
[380947588,1755912241311,-693.38,0.00013698,2]
[380947589,1755912241334,-400.0,0.00013698,2]
[380947590,1755912241356,-292.54647159,0.00013698,2]
[380947591,1755912241380,-516.79,0.00013698,2]
[380947592,1755912241403,-531.21,0.00013698,2]
[380947593,1755912241424,-400.0,0.00013698,2]
[380947594,1755912241446,-400.0,0.00013698,2]
[380947595,1755912241469,-400.0,0.00013698,2]
[380947596,1755912241491,-603.75,0.00013698,2]
[380947597,1755912241513,-400.0,0.00013698,2]
[380947598,1755912241536,-400.0,0.00013698,2]
[380947599,1755912241559,-629.4,0.00013698,2]
[380947600,1755912241587,-400.0,0.00013698,2]
[380947601,1755912241612,-400.0,0.00013698,2]
[380947602,1755912241637,-400.0,0.00013698,2]
[380947603,1755912241660,-400.0,0.00013698,2]
[380947604,1755912241689,-1793.73,0.00013698,2]
[380947605,1755912241712,-1447.21,0.00013698,2]
[380947606,1755912241735,-400.0,0.00013698,2]
[380947607,1755912241758,-400.0,0.00013698,2]
[380947608,1755912241780,-400.0,0.00013698,2]
[380947609,1755912241802,-400.0,0.00013698,2]
[380947610,1755912241825,-400.0,0.00013698,2]
[380947611,1755912241848,-522.09101577,0.00013698,2]
[380947612,1755912241870,-400.0,0.00013698,2]
[380947613,1755912241892,-415.42,0.00013698,2]
[380947614,1755912241916,-400.0,0.00013698,2]
[380947615,1755912241938,-609.03,0.00013698,2]
[380947616,1755912241962,-400.0,0.00013698,2]
[380947617,1755912241985,-400.0,0.00013698,2]
[380947618,1755912242008,-400.0,0.00013698,2]
[380947619,1755912242032,-400.0,0.00013698,2]
[380947620,1755912242054,-400.0,0.00013698,2]
[380947621,1755912242076,-409.44,0.00013698,2]
[380947622,1755912242100,-400.0,0.00013698,2]
[380947623,1755912242122,-824.31,0.00013698,2]
[380947624,1755912242146,-641.12,0.00013698,2]
[380947625,1755912242168,-400.0,0.00013698,2]
[380947626,1755912242191,-400.0,0.00013698,2]
[380947627,1755912242213,-400.0,0.00013698,2]
[380947628,1755912242248,-763.4,0.00013698,2]
[380947629,1755912242271,-400.0,0.00013698,2]
[380947630,1755912242293,-400.0,0.00013698,2]
[380947631,1755912242316,-417.359775,0.00013698,2]
[380947632,1755912242338,-400.0,0.00013698,2]
[380947633,1755912242361,-410.77,0.00013698,2]
[380947634,1755912242385,-499.57,0.00013698,2]
[380947635,1755912242408,-752.22,0.00013698,2]
[380947636,1755912242431,-577.94,0.00013698,2]
[380947637,1755912242453,-2272.11,0.00013698,2]
[380947638,1755912242475,-400.0,0.00013698,2]
[380947639,1755912242497,-476.9,0.00013698,2]
[380947640,1755912242518,-400.0,0.00013698,2]
[380947641,1755912242541,-400.0,0.00013698,2]
[380947642,1755912242564,-400.0,0.00013698,2]
[380947643,1755912242585,-536.29,0.00013698,2]
[380947644,1755912242606,-400.0,0.00013698,2]
[380947645,1755912242629,-400.0,0.00013698,2]
[380947646,1755912242651,-400.0,0.00013698,2]
[380947647,1755912242673,-637.7,0.00013698,2]
[380947648,1755912242694,-1117.08,0.00013698,2]
[380947649,1755912242716,-423.83,0.00013698,2]
[380947650,1755912242737,-400.0,0.00013698,2]
[380947651,1755912242759,-400.0,0.00013698,2]
[380947652,1755912242784,-588.06,0.00013698,2]
[380947653,1755912242806,-873.47,0.00013698,2]
[380947654,1755912242829,-459.29,0.00013698,2]
[380947655,1755912242851,-1000.0,0.00013698,2]
[380947656,1755912242873,-571.62,0.00013698,2]
[380947657,1755912242895,-400.0,0.00013698,2]
[380947658,1755912242919,-2412.26,0.00013698,2]
[380947659,1755912242940,-414.04,0.00013698,2]
[380947660,1755912242963,-400.0,0.00013698,2]
[380947661,1755912242985,-898.68,0.00013698,2]
[380947662,1755912243007,-549.98,0.00013698,2]
[380947663,1755912243031,-409.95,0.00013698,2]
[380947664,1755912243053,-542.57,0.00013698,2]
[380947665,1755912243076,-708.26,0.00013698,2]
[380947666,1755912243098,-400.0,0.00013698,2]
[380947667,1755912243120,-1704.41,0.00013698,2]
[380947668,1755912243142,-1187.16,0.00013698,2]
[380947669,1755912243164,-400.0,0.00013698,2]
[380947670,1755912243187,-400.0,0.00013698,2]
[380947671,1755912243209,-400.0,0.00013698,2]
[380947672,1755912243236,-974.17,0.00013698,2]
[380947673,1755912243259,-400.0,0.00013698,2]
[380947674,1755912243282,-400.0,0.00013698,2]
[380947675,1755912243305,-400.0,0.00013698,2]
[380947676,1755912243327,-531.47,0.00013698,2]
[380947677,1755912243349,-574.59509346,0.00013698,2]
[380947678,1755912258996,-482.882241,0.00012443,2]
[380947679,1755912262731,-17.117759,0.00012443,2]
[380947680,1755912272434,300.0,0.000137,5]
[380947681,1755912274447,700.0,0.000138,5]
[380947682,1755912277070,1100.0,0.000139,5]
[380947683,1755912278712,1400.0,0.000148,5]
[380947684,1755912280810,1800.0,0.000149,5]
[380947685,1755912298273,-275.7858,0.00013015,2]
[380947686,1755912298293,-151.69,0.00013015,2]
[380947687,1755912298314,-302.13,0.00013208,2]
[380947688,1755912298335,-279.19447974,0.00013223,2]
[380947689,1755912298355,-4042.2475,0.00013438,2]
[380947690,1755912298375,-430.66,0.00013449,2]
[380947691,1755912298396,-420.21,0.00013449,2]
[380947692,1755912298415,-418.41,0.00013449,2]
[380947693,1755912298435,-34567.9228,0.00013598,2]
[380947694,1755912298455,-1000.0,0.00013598,2]
[380947695,1755912298476,-190513.6944,0.00013598,2]
[380947696,1755912298495,-1000.0,0.00013697,2]
[380947697,1755912298514,-400.0,0.00013698,2]
[380947698,1755912298534,-400.0,0.00013698,2]
[380947699,1755912298553,-400.0,0.00013698,2]
[380947700,1755912298573,-400.0,0.00013698,2]
[380947701,1755912298594,-400.0,0.00013698,2]
[380947702,1755912298613,-400.0,0.00013698,2]
[380947703,1755912298633,-400.0,0.00013698,2]
[380947704,1755912298653,-400.0,0.00013698,2]
[380947705,1755912298673,-158.31317734,0.00013698,2]
[380947706,1755912298693,-400.0,0.00013698,2]
[380947707,1755912298713,-456.18,0.00013698,2]
[380947708,1755912298733,-400.0,0.00013698,2]
[380947709,1755912298753,-400.0,0.00013698,2]
[380947710,1755912298774,-400.0,0.00013698,2]
[380947711,1755912298793,-400.0,0.00013698,2]
[380947712,1755912298814,-890.29,0.00013698,2]
[380947713,1755912298835,-483.09,0.00013698,2]
[380947714,1755912298855,-400.0,0.00013698,2]
[380947715,1755912298875,-406.1,0.00013698,2]
[380947716,1755912298895,-400.0,0.00013698,2]
[380947717,1755912298918,-932.63,0.00013698,2]
[380947718,1755912298938,-400.0,0.00013698,2]
[380947719,1755912298958,-400.0,0.00013698,2]
[380947720,1755912298977,-400.0,0.00013698,2]